fUSD/lending_fUSD_20250225
["ID","MTS","AMOUNT","RATE_DAILY","PERIOD"]
[354485926,1740527455074,-500.0,0.00046849,120]
[354485927,1740527455083,-1577.17,0.00046849,120]
[354485928,1740527455093,-500.0,0.00046849,120]
[354485929,1740527455104,-2436.89,0.00046849,120]
[354485930,1740527455114,-557.68,0.00046849,120]
[354485931,1740527455124,-1226.15,0.00046849,120]
[354485932,1740527455134,-612.24,0.00046849,120]
[354485933,1740527455143,-1594.11,0.00046849,120]
[354485934,1740527455153,-500.0,0.00046849,120]
[354485935,1740527455163,-1217.04,0.00046849,120]
[354485936,1740527455172,-500.0,0.00046849,120]
[354485937,1740527455181,-500.0,0.00046849,120]
[354485938,1740527455191,-500.0,0.00046849,120]
[354485939,1740527455201,-500.0,0.00046849,120]
[354485940,1740527455211,-500.0,0.00046849,120]
[354485941,1740527455226,-500.0,0.00046849,120]
[354485942,1740527455236,-707.52,0.00046849,120]
[354485943,1740527455246,-1484.18,0.00046849,120]
[354485944,1740527455256,-500.0,0.00046849,120]
[354485945,1740527455265,-500.0,0.00046849,2]
[354485946,1740527455275,-500.0,0.00046849,120]
[354485947,1740527455285,-500.0,0.00046849,120]
[354485948,1740527455296,-500.0,0.00046849,120]
[354485949,1740527455306,-760.7,0.00046849,120]
[354485950,1740527455315,-1221.04,0.00046849,120]
[354485951,1740527455325,-500.0,0.00046849,120]
[354485952,1740527455334,-762.27,0.00046849,120]
[354485953,1740527455343,-1000.0,0.00046849,60]
[354485954,1740527455353,-500.0,0.00046849,120]
[354485955,1740527455363,-246.10183847,0.00046849,120]
[354485956,1740527455372,-1149.06,0.00046849,120]
[354485957,1740527455383,-500.0,0.00046849,120]
[354485958,1740527455393,-500.0,0.00046849,120]
[354485959,1740527455403,-706.67,0.00046849,120]
[354485960,1740527455413,-500.0,0.00046849,120]
[354485961,1740527455423,-2686.43,0.00046849,120]
[354485962,1740527455432,-1374.28,0.00046849,120]
[354485963,1740527455442,-500.0,0.00046849,120]
[354485964,1740527455451,-1649.17,0.00046849,120]
[354485965,1740527455461,-527.68,0.00046849,120]
[354485966,1740527455471,-731.43,0.00046849,120]
[354485967,1740527455484,-1494.22,0.00046849,120]
[354485968,1740527455494,-500.0,0.00046849,120]
[354485969,1740527455503,-1191.83,0.00046849,120]
[354485970,1740527455513,-1227.25,0.00046849,120]
[354485971,1740527455522,-500.0,0.00046849,120]
[354485972,1740527455532,-1424.84,0.00046849,120]
[354485973,1740527455611,-1121.49,0.00046849,120]
[354485974,1740527455620,-1543.86,0.00046849,120]
[354485975,1740527455629,-555.09,0.00046849,120]
[354485976,1740527455639,-932.59,0.00046849,120]
[354485977,1740527455648,-500.0,0.00046849,120]
[354485978,1740527455658,-1293.22,0.00046849,120]
[354485979,1740527455667,-1677.36,0.00046849,120]
[354485980,1740527455677,-1000.0,0.00046849,45]
[354485981,1740527455687,-500.0,0.00046849,120]
[354485982,1740527455696,-1638.19,0.00046849,120]
[354485983,1740527455705,-1803.5,0.00046849,120]
[354485984,1740527455715,-500.0,0.00046849,120]
[354485985,1740527455724,-720.66,0.00046849,120]
[354485986,1740527455734,-500.0,0.00046849,120]
[354485987,1740527455743,-1867.19,0.00046849,120]
[354485988,1740527455753,-635.97,0.00046849,120]
[354485989,1740527455763,-500.0,0.00046849,120]
[354485990,1740527455772,-2257.02,0.00046849,120]
[354485991,1740527455781,-500.0,0.00046849,120]
[354485992,1740527455790,-500.0,0.00046849,120]
[354485993,1740527455799,-614.82122095,0.00046849,120]
[354485994,1740527455808,-500.0,0.00046849,120]
[354485995,1740527455816,-949.31,0.00046849,120]
[354485996,1740527455824,-598.58,0.00046849,120]
[354485997,1740527455832,-1255.67,0.00046849,120]
[354485998,1740527455841,-595.37,0.00046849,120]
[354485999,1740527455850,-500.0,0.00046849,120]
[354486000,1740527455859,-528.49154557,0.00046849,120]
[354486001,1740527455868,-647.55,0.00046849,120]
[354486002,1740527455878,-498.49548242,0.00046849,120]
[354486003,1740527455887,-500.0,0.00046849,120]
[354486004,1740527455896,-922.62,0.00046849,120]
[354486005,1740527455905,-1355.4,0.00046849,120]
[354486006,1740527455914,-519.38196017,0.00046849,120]
[354486007,1740527455923,-500.0,0.00046849,120]
[354486008,1740527455932,-500.0,0.00046849,120]
[354486009,1740527455942,-383.39281815,0.00046849,120]
[354486010,1740527455951,-759.66,0.00046849,120]
[354486011,1740527455960,-500.0,0.00046849,120]
[354486012,1740527455969,-2481.65,0.00046849,120]
[354486013,1740527455979,-770.93,0.00046849,120]
[354486014,1740527455988,-1519.33,0.00046849,120]
[354486015,1740527455997,-475.76955501,0.00046849,120]
[354486016,1740527456007,-578.16,0.00046849,120]
[354486017,1740527456015,-1815.2,0.00046849,120]
[354486018,1740527456024,-262.07633316,0.00046849,120]
[354486019,1740527456034,-2444.15,0.00046849,120]
[354486020,1740527456043,-2137.76,0.00046849,30]
[354486021,1740527456052,-1036.37,0.00046849,120]
[354486022,1740527456061,-500.0,0.00046849,120]
[354486023,1740527456071,-500.0,0.00046849,120]
[354486024,1740527456080,-500.0,0.00046849,120]
[354486025,1740527456089,-1896.06,0.00046849,120]
[354486026,1740527456099,-500.0,0.00046849,120]
[354486027,1740527456108,-1402.88,0.00046849,120]
[354486028,1740527456117,-800.38,0.00046849,120]
[354486029,1740527456126,-999.76,0.00046849,120]
[354486030,1740527456135,-596.9,0.00046849,120]
[354486031,1740527456145,-624.45,0.00046849,30]
[354486032,1740527456154,-2998.83,0.00046849,120]
[354486033,1740527456163,-500.0,0.00046849,120]
[354486034,1740527456172,-500.0,0.00046849,120]
[354486035,1740527456182,-678.0,0.00046849,120]
[354486036,1740527456191,-500.0,0.00046849,120]
[354486037,1740527456201,-500.0,0.00046849,120]
[354486038,1740527456211,-2005.24,0.00046849,120]
[354486039,1740527456226,-500.0,0.00046849,120]
[354486040,1740527456235,-500.0,0.00046849,120]
[354486041,1740527456244,-500.0,0.00046849,120]
[354486042,1740527456255,-563.08,0.00046849,120]
[354486043,1740527456264,-1793.23,0.00046849,120]
[354486044,1740527456273,-592.71,0.00046849,120]
[354486045,1740527456283,-603.65,0.00046849,60]
[354486046,1740527456293,-500.0,0.00046849,120]
[354486047,1740527456303,-500.0,0.00046849,120]
[354486048,1740527456312,-1849.3,0.00046849,120]
[354486049,1740527456321,-500.0,0.00046849,120]
[354486050,1740527456331,-500.0,0.00046849,120]
[354486051,1740527456340,-665.86,0.00046849,120]
[354486052,1740527456349,-500.0,0.00046849,120]
[354486053,1740527456358,-3215.5,0.00046849,120]
[354486054,1740527456367,-500.0,0.00046849,120]
[354486055,1740527456376,-500.0,0.00046849,120]
[354486056,1740527456386,-1424.52,0.00046849,120]
[354486057,1740527456395,-500.0,0.00046849,120]
[354486058,1740527456404,-682.88,0.00046849,120]
[354486059,1740527456414,-500.0,0.00046849,120]
[354486060,1740527456423,-500.0,0.00046849,120]
[354486061,1740527456432,-1483.57,0.00046849,120]
[354486062,1740527456441,-1717.28,0.00046849,120]
[354486063,1740527456451,-772.07,0.00046849,120]
[354486064,1740527456460,-777.05,0.00046849,120]
[354486065,1740527456469,-500.0,0.00046849,120]
[354486066,1740527456479,-769.81,0.00046849,120]
[354486067,1740527456488,-500.0,0.00046849,120]
[354486068,1740527456497,-500.0,0.00046849,120]
[354486069,1740527456507,-534.56390554,0.00046849,120]
[354486070,1740527456516,-1557.71,0.00046849,120]
[354486071,1740527456525,-500.0,0.00046849,120]
[354486072,1740527456534,-1215.49,0.00046849,120]
[354486073,1740527456544,-536.43,0.00046849,120]
[354486074,1740527456553,-2780.08,0.00046849,120]
[354486075,1740527456562,-500.0,0.00046849,120]
[354486076,1740527456571,-598.55,0.00046849,120]
[354486077,1740527456580,-512.98,0.00046849,120]
[354486078,1740527456590,-952.93,0.00046849,120]
[354486079,1740527456599,-978.21,0.00046849,120]
[354486080,1740527456608,-530.26,0.00046849,120]
[354486081,1740527456618,-1310.38,0.00046849,120]
[354486082,1740527456627,-502.60152848,0.00046849,120]
[354486083,1740527456636,-500.0,0.00046849,120]
[354486084,1740527456645,-995.99,0.00046849,120]
[354486085,1740527456654,-1622.4,0.00046849,120]
[354486086,1740527456663,-522.27,0.00046849,120]
[354486087,1740527456672,-1470.07,0.00046849,120]
[354486088,1740527456680,-500.0,0.00046849,120]
[354486089,1740527456690,-500.0,0.00046849,120]
[354486090,1740527456699,-500.0,0.00046849,120]
[354486091,1740527456708,-1618.81,0.00046849,120]
[354486092,1740527456717,-499.80248857,0.00046849,120]
[354486093,1740527456727,-552.95,0.00046849,120]
[354486094,1740527456736,-500.0,0.00046849,120]
[354486095,1740527456746,-500.0,0.00046849,120]
[354486096,1740527456755,-1344.74,0.00046849,120]
[354486097,1740527456765,-1817.26,0.00046849,120]
[354486098,1740527456774,-1235.37,0.00046849,120]
[354486099,1740527456784,-500.0,0.00046849,120]
[354486100,1740527456793,-500.0,0.00046849,120]
[354486101,1740527456803,-2305.22,0.00046849,120]
[354486102,1740527456812,-554.94775193,0.00046849,120]
[354486103,1740527456821,-606.33,0.00046849,120]
[354486104,1740527456830,-500.0,0.00046849,120]
[354486105,1740527456839,-520.78,0.00046849,120]
[354486106,1740527456849,-856.93,0.00046849,120]
[354486107,1740527456858,-894.42,0.00046849,120]
[354486108,1740527456868,-1456.09,0.00046849,120]
[354486109,1740527456877,-713.98,0.00046849,120]
[354486110,1740527456887,-500.0,0.00046849,120]
[354486111,1740527456896,-2533.88,0.00046849,120]
[354486112,1740527456906,-500.0,0.00046849,120]
[354486113,1740527456916,-2036.92,0.00046849,120]
[354486114,1740527456925,-693.4,0.00046849,120]
[354486115,1740527456935,-802.77,0.00046849,120]
[354486116,1740527456944,-500.0,0.00046849,120]
[354486117,1740527456954,-3122.89,0.00046849,120]
[354486118,1740527456963,-500.0,0.00046849,120]
[354486119,1740527456972,-500.0,0.00046849,120]
[354486120,1740527456983,-1117.58,0.00046849,120]
[354486121,1740527456992,-343.65726201,0.00046849,120]
[354486122,1740527457002,-975.13,0.00046849,120]
[354486123,1740527457011,-1187.14,0.00046849,120]
[354486124,1740527457020,-1559.2,0.00046849,120]
[354486125,1740527457030,-500.0,0.00046849,120]
[354486126,1740527457039,-928.64,0.00046849,120]
[354486127,1740527457049,-1234.62,0.00046849,120]
[354486128,1740527457057,-1380.86,0.00046849,120]
[354486129,1740527457067,-547.74,0.00046849,120]
[354486130,1740527457076,-500.0,0.00046849,120]
[354486131,1740527457086,-500.0,0.00046849,120]
[354486132,1740527457095,-500.0,0.00046849,120]
[354486133,1740527457104,-1727.59,0.00046849,120]
[354486134,1740527457113,-920.51,0.00046849,120]
[354486135,1740527457123,-500.0,0.00046849,120]
[354486136,1740527457132,-1542.92,0.00046849,120]
[354486137,1740527457142,-408.84491313,0.00046849,120]
[354486138,1740527457151,-998.43,0.00046849,120]
[354486139,1740527457162,-868.39,0.00046849,120]
[354486140,1740527457171,-500.0,0.00046849,120]
[354486141,1740527457181,-500.0,0.00046849,120]
[354486142,1740527457191,-500.0,0.00046849,120]
[354486143,1740527457201,-500.0,0.00046849,120]
[354486144,1740527457211,-612.39,0.00046849,120]
[354486145,1740527457224,-583.19,0.00046849,120]
[354486146,1740527457235,-2102.06,0.00046849,120]
[354486147,1740527457244,-500.0,0.00046849,120]
[354486148,1740527457254,-500.0,0.00046849,120]
[354486149,1740527457264,-759.3,0.00046849,120]
[354486150,1740527457273,-2237.38,0.00046849,120]
[354486151,1740527457283,-500.0,0.00046849,120]
[354486152,1740527457295,-500.0,0.00046849,120]
[354486153,1740527457305,-990.28,0.00046849,120]
[354486154,1740527457314,-858.67,0.00046849,120]
[354486155,1740527457324,-500.0,0.00046849,120]
[354486156,1740527457333,-500.0,0.00046849,120]
[354486157,1740527457342,-500.0,0.00046849,120]
[354486158,1740527457352,-2540.7,0.00046849,120]
[354486159,1740527457361,-500.0,0.00046849,120]
[354486160,1740527457371,-1315.23,0.00046849,120]
[354486161,1740527457381,-500.0,0.00046849,120]
[354486162,1740527457391,-762.04,0.00046849,120]
[354486163,1740527457401,-357.40086814,0.00046849,120]
[354486164,1740527457411,-1714.11,0.00046849,120]
[354486165,1740527457421,-500.0,0.00046849,120]
[354486166,1740527457431,-500.0,0.00046849,120]
[354486167,1740527457440,-1291.66,0.00046849,120]
[354486168,1740527457451,-500.0,0.00046849,120]
[354486169,1740527457460,-1362.81,0.00046849,120]
[354486170,1740527457470,-500.0,0.00046849,120]
[354486171,1740527457480,-500.0,0.00046849,120]
[354486172,1740527457489,-321.70888857,0.00046849,120]
[354486173,1740527457499,-1122.97,0.00046849,120]
[354486174,1740527457508,-2146.63,0.00046849,120]
[354486175,1740527457518,-500.0,0.00046849,120]
[354486176,1740527457527,-596.2,0.00046849,120]
[354486177,1740527457536,-562.94,0.00046849,120]
[354486178,1740527457545,-1309.62,0.00046849,120]
[354486179,1740527457554,-798.0,0.00046849,120]
[354486180,1740527457564,-2428.15,0.00046849,120]
[354486181,1740527457573,-500.0,0.00046849,120]
[354486182,1740527457582,-500.0,0.00046849,120]
[354486183,1740527457592,-1433.65,0.00046849,120]
[354486184,1740527457601,-548.25,0.00046849,120]
[354486185,1740527457611,-500.0,0.00046849,120]
[354486186,1740527457621,-500.0,0.00046849,120]
[354486187,1740527457631,-1305.74,0.00046849,120]
[354486188,1740527457640,-1393.4,0.00046849,120]
[354486189,1740527457649,-1348.33,0.00046849,120]
[354486190,1740527457658,-5415.15,0.00046849,120]
[354486191,1740527457667,-500.0,0.00046849,120]
[354486192,1740527457676,-500.0,0.00046849,120]
[354486193,1740527457685,-611.39,0.00046849,120]
[354486194,1740527457695,-1739.65,0.00046849,120]
[354486195,1740527457704,-790.91,0.00046849,120]
[354486196,1740527457714,-2702.2,0.00046849,120]
[354486197,1740527457723,-500.0,0.00046849,120]
[354486198,1740527457733,-1508.77,0.00046849,120]
[354486199,1740527457742,-2189.76,0.00046849,120]
[354486200,1740527457752,-500.0,0.00046849,120]
[354486201,1740527457761,-1538.64,0.00046849,120]
[354486202,1740527457771,-503.24,0.00046849,120]
[354486203,1740527457780,-4086.91,0.00046849,120]
[354486204,1740527457789,-500.0,0.00046849,120]
[354486205,1740527457799,-500.0,0.00046849,120]
[354486206,1740527457808,-402.18510294,0.00046849,120]
[354486207,1740527457818,-555.94,0.00046849,120]
[354486208,1740527457827,-673.54,0.00046849,120]
[354486209,1740527457836,-2715.9,0.00046849,120]
[354486210,1740527457846,-500.0,0.00046849,120]
[354486211,1740527457855,-1188.47,0.00046849,120]
[354486212,1740527457864,-500.0,0.00046849,120]
[354486213,1740527457874,-500.0,0.00046849,120]
[354486214,1740527457883,-917.21,0.00046849,120]
[354486215,1740527457893,-1087.2,0.00046849,120]
[354486216,1740527457902,-4846.22,0.00046849,120]
[354486217,1740527457911,-1541.67,0.00046849,120]
[354486218,1740527457921,-500.0,0.00046849,120]
[354486219,1740527457930,-500.0,0.00046849,120]
[354486220,1740527457939,-709.44,0.00046849,120]
[354486221,1740527457947,-6441.32,0.00046849,120]
[354486222,1740527457957,-641.72,0.00046849,120]
[354486223,1740527457966,-2621.13,0.00046849,120]
[354486224,1740527457976,-1537.06,0.00046849,120]
[354486225,1740527457985,-1766.87,0.00046849,120]
[354486226,1740527457994,-500.0,0.00046849,120]
[354486227,1740527458003,-4264.08,0.00046849,120]
[354486228,1740527458013,-500.0,0.00046849,120]
[354486229,1740527458024,-500.0,0.00046849,120]
[354486230,1740527458034,-1146.93,0.00046849,120]
[354486231,1740527458045,-500.0,0.00046849,120]
[354486232,1740527458056,-2993.23,0.00046849,120]
[354486233,1740527458065,-1655.57,0.00046849,120]
[354486234,1740527458074,-500.0,0.00046849,120]
[354486235,1740527458083,-583.02,0.00046849,120]
[354486236,1740527458093,-580.82,0.00046849,120]
[354486237,1740527458102,-805.66,0.00046849,120]
[354486238,1740527458112,-4964.88,0.00046849,120]
[354486239,1740527458121,-1389.36,0.00046849,120]
[354486240,1740527458131,-1074.88,0.00046849,120]
[354486241,1740527458143,-3500.0,0.00046849,120]
[354486242,1740527458152,-500.0,0.00046849,120]
[354486243,1740527458162,-500.0,0.00046849,120]
[354486244,1740527458171,-2523.22,0.00046849,120]
[354486245,1740527458180,-2551.04,0.00046849,120]
[354486246,1740527458189,-500.0,0.00046849,120]
[354486247,1740527458198,-4740.15,0.00046849,120]
[354486248,1740527458208,-1489.41,0.00046849,7]
[354486249,1740527458221,-3223.37,0.00046849,120]
[354486250,1740527458231,-500.0,0.00046849,120]
[354486251,1740527458241,-560.29598802,0.00046849,120]
[354486252,1740527458250,-500.0,0.00046849,120]
[354486253,1740527458260,-500.0,0.00046849,120]
[354486254,1740527458269,-500.0,0.00046849,120]
[354486255,1740527458278,-500.0,0.00046849,120]
[354486256,1740527458288,-739.2,0.00046849,120]
[354486257,1740527458298,-1568.28,0.00046849,120]
[354486258,1740527458307,-1505.73,0.00046849,120]
[354486259,1740527458316,-500.0,0.00046849,120]
[354486260,1740527458326,-2194.38,0.00046849,120]
[354486261,1740527458335,-2425.43,0.00046849,120]
[354486262,1740527458344,-508.07927013,0.00046849,120]
[354486263,1740527458353,-241.22146426,0.00046849,120]
[354486264,1740527458362,-4683.04,0.00046849,120]
[354486265,1740527458372,-500.0,0.00046849,120]
[354486266,1740527458382,-2682.39,0.00046849,120]
[354486267,1740527458392,-500.0,0.00046849,120]
[354486268,1740527458401,-500.0,0.00046849,120]
[354486269,1740527458411,-2490.09,0.00046849,120]
[354486270,1740527458420,-642.03937461,0.00046849,120]
[354486271,1740527458430,-2268.16,0.00046849,120]
[354486272,1740527458439,-3962.11,0.00046849,120]
[354486273,1740527458449,-500.0,0.00046849,120]
[354486274,1740527458458,-2387.4,0.00046849,120]
[354486275,1740527458466,-351.94916172,0.00046849,120]
[354486276,1740527458474,-357.74778849,0.00046849,120]
[354486277,1740527458484,-500.0,0.00046849,120]
[354486278,1740527458497,-604.77,0.00046849,120]
[354486279,1740527458506,-517.49227564,0.00046849,120]
[354486280,1740527458516,-500.0,0.00046849,120]
[354486281,1740527458525,-500.0,0.00046849,120]
[354486282,1740527458535,-2112.75,0.00046849,120]
[354486283,1740527458544,-500.0,0.00046849,120]
[354486284,1740527458554,-940.45,0.00046849,120]
[354486285,1740527458563,-738.96,0.00046849,120]
[354486286,1740527458572,-2897.77,0.00046849,120]
[354486287,1740527458581,-500.0,0.00046849,120]
[354486288,1740527458590,-503.64,0.00046849,120]
[354486289,1740527458599,-500.0,0.00046849,120]
[354486290,1740527458609,-2628.8,0.00046849,120]
[354486291,1740527458618,-500.0,0.00046849,120]
[354486292,1740527458627,-500.0,0.00046849,120]
[354486293,1740527458637,-1897.09,0.00046849,120]
[354486294,1740527458646,-1894.19,0.00046849,120]
[354486295,1740527458655,-1326.59,0.00046849,120]
[354486296,1740527458664,-3167.9,0.00046849,120]
[354486297,1740527458673,-500.0,0.00046849,120]
[354486298,1740527458682,-500.0,0.00046849,120]
[354486299,1740527458691,-500.0,0.00046849,120]
[354486300,1740527458701,-500.0,0.00046849,120]
[354486301,1740527458710,-500.0,0.00046849,120]
[354486302,1740527458720,-4413.18,0.00046849,120]
[354486303,1740527458731,-1086.1,0.00046849,120]
[354486304,1740527458740,-2260.53,0.00046849,120]
[354486305,1740527458749,-1230.44,0.00046849,120]
[354486306,1740527458759,-1703.81,0.00046849,120]
[354486307,1740527458768,-656.55,0.00046849,120]
[354486308,1740527458777,-1727.26,0.00046849,120]
[354486309,1740527458786,-500.0,0.00046849,120]
[354486310,1740527458796,-969.32,0.00046849,120]
[354486311,1740527458805,-500.0,0.00046849,120]
[354486312,1740527458815,-724.06,0.00046849,120]
[354486313,1740527458824,-500.0,0.00046849,120]
[354486314,1740527458833,-1813.23,0.00046849,120]
[354486315,1740527458842,-2406.4,0.00046849,120]
[354486316,1740527458851,-1834.0,0.00046849,120]
[354486317,1740527458861,-500.0,0.00046849,120]
[354486318,1740527458870,-874.81,0.00046849,120]
[354486319,1740527458879,-500.0,0.00046849,120]
[354486320,1740527458888,-1422.45,0.00046849,2]
[354486321,1740527458898,-2255.25,0.00046849,120]
[354486322,1740527458908,-629.65,0.00046849,120]
[354486323,1740527458917,-1521.62,0.00046849,120]
[354486324,1740527458927,-786.94,0.00046849,120]
[354486325,1740527458936,-500.0,0.00046849,120]
[354486326,1740527458945,-1030.44,0.00046849,120]
[354486327,1740527458954,-566.13,0.00046849,120]
[354486328,1740527458964,-3874.24,0.00046849,120]
[354486329,1740527458975,-500.0,0.00046849,120]
[354486330,1740527458986,-6358.87,0.00046849,120]
[354486331,1740527458995,-500.0,0.00046849,120]
[354486332,1740527459005,-5413.15,0.00046849,120]
[354486333,1740527459014,-493.86523728,0.00046849,120]
[354486334,1740527459024,-500.0,0.00046849,120]
[354486335,1740527459033,-1707.44,0.00046849,120]
[354486336,1740527459042,-2460.38,0.00046849,120]
[354486337,1740527459051,-500.0,0.00046849,120]
[354486338,1740527459060,-1079.41,0.00046849,120]
[354486339,1740527459069,-422.74460166,0.00046849,120]
[354486340,1740527459643,-1793.65539834,0.00046849,120]
[354486341,1740527459653,-2349.21,0.00046849,120]
[354486342,1740527459664,-2377.85,0.00046849,120]
[354486343,1740527459674,-665.5,0.00046849,120]
[354486344,1740527459683,-500.0,0.00046849,120]
[354486345,1740527459693,-1011.97,0.00046849,120]
[354486346,1740527459703,-745.32,0.00046849,120]
[354486347,1740527459713,-500.0,0.00046849,120]
[354486348,1740527459722,-500.0,0.00046849,120]
[354486349,1740527459732,-1886.46,0.00046849,120]
[354486350,1740527459741,-5322.32,0.00046849,120]
[354486351,1740527459751,-500.0,0.00046849,120]
[354486352,1740527459760,-3076.08,0.00046849,120]
[354486353,1740527459771,-500.0,0.00046849,120]
[354486354,1740527459780,-808.1,0.00046849,120]
[354486355,1740527459790,-779.0,0.00046849,120]
[354486356,1740527459799,-500.0,0.00046849,120]
[354486357,1740527459809,-285.26267748,0.00046849,120]
[354486358,1740527459818,-500.0,0.00046849,120]
[354486359,1740527459828,-968.45,0.00046849,120]
[354486360,1740527459838,-500.0,0.00046849,120]
[354486361,1740527459852,-1482.89,0.00046849,120]
[354486362,1740527459862,-500.0,0.00046849,120]
[354486363,1740527459872,-500.0,0.00046849,120]
[354486364,1740527459882,-4105.87,0.00046849,120]
[354486365,1740527459892,-1668.43,0.00046849,120]
[354486366,1740527459903,-500.0,0.00046849,120]
[354486367,1740527459914,-500.0,0.00046849,120]
[354486368,1740527459923,-500.0,0.00046849,120]
[354486369,1740527459934,-2349.21,0.00046849,120]
[354486370,1740527459944,-500.0,0.00046849,120]
[354486371,1740527459954,-500.0,0.00046849,120]
[354486372,1740527459963,-500.0,0.00046849,120]
[354486373,1740527459974,-1551.52,0.00046849,120]
[354486374,1740527459985,-1239.73,0.00046849,120]
[354486375,1740527459995,-979.82,0.00046849,120]
[354486376,1740527460006,-783.16,0.00046849,120]
[354486377,1740527460016,-583.15,0.00046849,120]
[354486378,1740527460027,-2366.38,0.00046849,120]
[354486379,1740527460037,-2705.59,0.00046849,120]
[354486380,1740527460048,-500.0,0.00046849,120]
[354486381,1740527460059,-1464.43,0.00046849,120]
[354486382,1740527460070,-500.0,0.00046849,120]
[354486383,1740527460080,-556.21,0.00046849,120]
[354486384,1740527460091,-518.26,0.00046849,120]
[354486385,1740527460103,-500.0,0.00046849,120]
[354486386,1740527460114,-3177.65,0.00046849,120]
[354486387,1740527460124,-1122.25,0.00046849,120]
[354486388,1740527460134,-4320.56,0.00046849,120]
[354486389,1740527460144,-1637.5,0.00046849,120]
[354486390,1740527460154,-5563.67,0.00046849,120]
[354486391,1740527460165,-500.0,0.00046849,120]
[354486392,1740527460175,-4755.24,0.00046849,120]
[354486393,1740527460186,-11788.35,0.00046849,120]
[354486394,1740527460196,-1611.38,0.00046849,120]
[354486395,1740527460206,-1296.7,0.00046849,120]
[354486396,1740527460220,-5768.58,0.00046849,120]
[354486397,1740527460231,-1952.29,0.00046849,120]
[354486398,1740527460242,-500.0,0.00046849,120]
[354486399,1740527460255,-814.01,0.00046849,120]
[354486400,1740527460266,-1440.06,0.00046849,120]
[354486401,1740527460277,-500.0,0.00046849,120]
[354486402,1740527460287,-629.58,0.00046849,120]
[354486403,1740527460298,-500.0,0.00046849,120]
[354486404,1740527460308,-1235.75,0.00046849,120]
[354486405,1740527460318,-500.0,0.00046849,120]
[354486406,1740527460328,-500.0,0.00046849,120]
[354486407,1740527460339,-500.0,0.00046849,120]
[354486408,1740527460349,-500.0,0.00046849,120]
[354486409,1740527460359,-2460.77,0.00046849,120]
[354486410,1740527460369,-500.0,0.00046849,120]
[354486411,1740527460380,-500.0,0.00046849,120]
[354486412,1740527460391,-3455.77,0.00046849,120]
[354486413,1740527460402,-2996.31,0.00046849,120]
[354486414,1740527460413,-500.0,0.00046849,120]
[354486415,1740527460423,-953.66,0.00046849,120]
[354486416,1740527460433,-3150.92,0.00046849,120]
[354486417,1740527460443,-575.91,0.00046849,120]
[354486418,1740527460453,-500.0,0.00046849,120]
[354486419,1740527460464,-500.0,0.00046849,120]
[354486420,1740527460474,-500.0,0.00046849,120]
[354486421,1740527460486,-500.0,0.00046849,120]
[354486422,1740527460496,-500.0,0.00046849,120]
[354486423,1740527460507,-560.85,0.00046849,120]
[354486424,1740527460521,-4339.1,0.00046849,120]
[354486425,1740527460531,-500.0,0.00046849,120]